[Event "Titled Tuesday Blitz April 11 Late 2023"]
[White "Ozates, Tuna"]
[Black "Yeritsyan, Hayk"]
[WhiteFideId "6354521"]
[BlackFideId "13307320"]
[WhiteElo "2151"]
[BlackElo "2241"]
[Result "1/2-1/2"]
[Round "03"]
[TimeControl "180+2"]
[Date "2023.04.11"]
[WhiteClock "0:02:11"]
[BlackClock "0:02:28"]

1. e4 {[%clk 0:03:00]}  c6 {[%clk 0:02:59]} 2. d4 {[%clk 0:02:59]}  d5 {[%clk 0:03:00]} 3. exd5 {[%clk 0:02:58]}  cxd5 {[%clk 0:03:01]} 4. c4 {[%clk 0:02:59]}  Nf6 {[%clk 0:03:00]} 5. Nc3 {[%clk 0:03:00]}  Nc6 {[%clk 0:03:00]} 6. Nf3 {[%clk 0:03:00]}  a6 {[%clk 0:03:00]} 7. c5 {[%clk 0:02:59]}  Bg4 {[%clk 0:02:58]} 8. Be2 {[%clk 0:02:58]}  e6 {[%clk 0:02:57]} 9. Be3 {[%clk 0:02:57]}  Be7 {[%clk 0:02:54]} 10. O-O {[%clk 0:02:58]}  O-O {[%clk 0:02:53]} 11. a3 {[%clk 0:02:58]}  Ne4 {[%clk 0:02:50]} 12. h3 {[%clk 0:02:55]}  Bxf3 {[%clk 0:02:46]} 13. Bxf3 {[%clk 0:02:56]}  Nxc3 {[%clk 0:02:47]} 14. bxc3 {[%clk 0:02:57]}  b6 {[%clk 0:02:47]} 15. c4 {[%clk 0:02:53]}  bxc5 {[%clk 0:02:46]} 16. dxc5 {[%clk 0:02:52]}  Ne5 {[%clk 0:02:37]} 17. cxd5 {[%clk 0:02:50]}  Nxf3+ {[%clk 0:02:37]} 18. Qxf3 {[%clk 0:02:51]}  Qxd5 {[%clk 0:02:35]} 19. Qxd5 {[%clk 0:02:47]}  exd5 {[%clk 0:02:35]} 20. Rfd1 {[%clk 0:02:43]}  Rfd8 {[%clk 0:02:35]} 21. Rab1 {[%clk 0:02:40]}  Rac8 {[%clk 0:02:35]} 22. Rb6 {[%clk 0:02:24]}  Bxc5 {[%clk 0:02:31]} 23. Bxc5 {[%clk 0:02:22]}  Rxc5 {[%clk 0:02:32]} 24. Rxa6 {[%clk 0:02:23]}  g6 {[%clk 0:02:32]} 25. Kh2 {[%clk 0:02:17]}  d4 {[%clk 0:02:31]} 26. Rd3 {[%clk 0:02:14]}  Rc3 {[%clk 0:02:30]} 27. Rxc3 {[%clk 0:02:13]}  dxc3 {[%clk 0:02:31]} 28. Rc6 {[%clk 0:02:14]}  Rd3 {[%clk 0:02:28]} 29. a4 {[%clk 0:02:13]}  Rd4 {[%clk 0:02:28]} 30. Rxc3 {[%clk 0:02:11]}  Rxa4 {[%clk 0:02:28]} 1/2-1/2


[Site "https://www.chess.com"]

[Event "Titled Tuesday Blitz April 11 Late 2023"]
[White "Wadsworth, Matthew J"]
[Black "Gutkin, Ilya"]
[WhiteFideId "415804"]
[BlackFideId "16203470"]
[WhiteElo "2330"]
[BlackElo "2265"]
[Result "1-0"]
[Round "03"]
[TimeControl "180+2"]
[Date "2023.04.11"]
[WhiteClock "0:00:24"]
[BlackClock "0:00:01"]

1. c4 {[%clk 0:03:00]}  c5 {[%clk 0:02:59]} 2. g3 {[%clk 0:03:01]}  g6 {[%clk 0:03:00]} 3. Bg2 {[%clk 0:03:01]}  Bg7 {[%clk 0:03:00]} 4. Nc3 {[%clk 0:03:01]}  Nc6 {[%clk 0:03:01]} 5. Nf3 {[%clk 0:03:01]}  d6 {[%clk 0:03:01]} 6. O-O {[%clk 0:03:01]}  e6 {[%clk 0:03:02]} 7. e3 {[%clk 0:02:59]}  Nge7 {[%clk 0:03:00]} 8. d4 {[%clk 0:02:59]}  O-O {[%clk 0:03:01]} 9. d5 {[%clk 0:02:51]}  Na5 {[%clk 0:03:00]} 10. Nd2 {[%clk 0:02:52]}  a6 {[%clk 0:02:53]} 11. Rb1 {[%clk 0:02:51]}  Rb8 {[%clk 0:02:53]} 12. Qc2 {[%clk 0:02:45]}  b5 {[%clk 0:02:51]} 13. b3 {[%clk 0:02:45]}  Bb7 {[%clk 0:02:03]} 14. e4 {[%clk 0:02:33]}  b4 {[%clk 0:01:44]} 15. Nd1 {[%clk 0:02:25]}  e5 {[%clk 0:01:41]} 16. Bh3 {[%clk 0:02:20]}  Bc8 {[%clk 0:01:41]} 17. Bxc8 {[%clk 0:02:19]}  Qxc8 {[%clk 0:01:42]} 18. Kg2 {[%clk 0:02:16]}  f5 {[%clk 0:01:42]} 19. exf5 {[%clk 0:02:01]}  Nxf5 {[%clk 0:01:39]} 20. Ne4 {[%clk 0:01:57]}  Nd4 {[%clk 0:01:35]} 21. Qd3 {[%clk 0:01:53]}  Qf5 {[%clk 0:01:27]} 22. f3 {[%clk 0:01:52]}  Nb7 {[%clk 0:01:24]} 23. Ne3 {[%clk 0:01:50]}  Qh5 {[%clk 0:01:11]} 24. Qd1 {[%clk 0:01:24]}  Rf7 {[%clk 0:00:48]} 25. h4 {[%clk 0:01:01]}  Rbf8 {[%clk 0:00:35]} 26. Ng5 {[%clk 0:00:59]}  Bh6 {[%clk 0:00:07]} 27. Nxf7 {[%clk 0:00:54]}  Rxf7 {[%clk 0:00:06]} 28. Ng4 {[%clk 0:00:50]}  Bxc1 {[%clk 0:00:05]} 29. Rxc1 {[%clk 0:00:50]}  Nf5 {[%clk 0:00:03]} 30. Qd2 {[%clk 0:00:45]}  Nd8 {[%clk 0:00:02]} 31. Qg5 {[%clk 0:00:45]}  Qxg5 {[%clk 0:00:03]} 32. hxg5 {[%clk 0:00:45]}  Kg7 {[%clk 0:00:02]} 33. Rce1 {[%clk 0:00:43]}  Re7 {[%clk 0:00:03]} 34. f4 {[%clk 0:00:42]}  Nf7 {[%clk 0:00:03]} 35. Nf6 {[%clk 0:00:40]}  e4 {[%clk 0:00:02]} 36. Rxe4 {[%clk 0:00:38]}  Rxe4 {[%clk 0:00:01]} 37. Nxe4 {[%clk 0:00:39]}  Ne3+ {[%clk 0:00:02]} 38. Kf2 {[%clk 0:00:38]}  Nxf1 {[%clk 0:00:03]} 39. Kxf1 {[%clk 0:00:39]}  h6 {[%clk 0:00:03]} 40. gxh6+ {[%clk 0:00:39]}  Kxh6 {[%clk 0:00:04]} 41. Kf2 {[%clk 0:00:39]}  Kg7 {[%clk 0:00:04]} 42. Kf3 {[%clk 0:00:39]}  Kh6 {[%clk 0:00:04]} 43. g4 {[%clk 0:00:39]}  Kg7 {[%clk 0:00:04]} 44. g5 {[%clk 0:00:39]}  Kh7 {[%clk 0:00:02]} 45. Kg4 {[%clk 0:00:39]}  Kg7 {[%clk 0:00:02]} 46. Nf6 {[%clk 0:00:36]}  Kf8 {[%clk 0:00:02]} 47. Ne4 {[%clk 0:00:25]}  Kg7 {[%clk 0:00:02]} 48. f5 {[%clk 0:00:23]}  Ne5+ {[%clk 0:00:02]} 49. Kf4 {[%clk 0:00:23]}  Nd3+ {[%clk 0:00:01]} 50. Ke3 {[%clk 0:00:23]}  gxf5 {[%clk 0:00:01]} 51. Kxd3 {[%clk 0:00:23]}  fxe4+ {[%clk 0:00:01]} 52. Kxe4 {[%clk 0:00:24]} 1-0


[Site "https://www.chess.com"]

[Event "Titled Tuesday Blitz April 11 Late 2023"]
[White "Klenburg, Michael"]
[Black "Jarocka, Liwia"]
[WhiteFideId "14102072"]
[BlackFideId "21807558"]
[WhiteElo "2396"]
[BlackElo "2013"]
[Result "1-0"]
[Round "03"]
[TimeControl "180+2"]
[Date "2023.04.11"]
[WhiteClock "0:00:22"]
[BlackClock "0:00:01"]

1. g3 {[%clk 0:02:59]}  Nf6 {[%clk 0:02:58]} 2. Bg2 {[%clk 0:02:59]}  g6 {[%clk 0:02:58]} 3. c4 {[%clk 0:02:59]}  Bg7 {[%clk 0:02:58]} 4. Nc3 {[%clk 0:02:59]}  O-O {[%clk 0:02:55]} 5. d3 {[%clk 0:02:59]}  e5 {[%clk 0:02:54]} 6. Bd2 {[%clk 0:02:59]}  Nc6 {[%clk 0:02:52]} 7. Qc1 {[%clk 0:02:59]}  d6 {[%clk 0:02:50]} 8. Bh6 {[%clk 0:02:58]}  Re8 {[%clk 0:02:46]} 9. h4 {[%clk 0:02:52]}  Bh8 {[%clk 0:02:44]} 10. Bg5 {[%clk 0:02:50]}  h5 {[%clk 0:02:39]} 11. Nd5 {[%clk 0:02:49]}  Be6 {[%clk 0:02:39]} 12. a3 {[%clk 0:02:45]}  Bxd5 {[%clk 0:02:38]} 13. cxd5 {[%clk 0:02:45]}  Nd4 {[%clk 0:02:38]} 14. Qd1 {[%clk 0:02:41]}  Rc8 {[%clk 0:02:18]} 15. e3 {[%clk 0:02:38]}  Nf5 {[%clk 0:02:17]} 16. Ne2 {[%clk 0:02:38]}  c6 {[%clk 0:02:17]} 17. Nc3 {[%clk 0:02:38]}  Ne7 {[%clk 0:02:13]} 18. dxc6 {[%clk 0:02:36]}  bxc6 {[%clk 0:02:14]} 19. O-O {[%clk 0:02:28]}  d5 {[%clk 0:02:13]} 20. Rc1 {[%clk 0:02:27]}  Qd6 {[%clk 0:02:07]} 21. e4 {[%clk 0:02:26]}  d4 {[%clk 0:02:06]} 22. Nb1 {[%clk 0:02:23]}  c5 {[%clk 0:02:05]} 23. Nd2 {[%clk 0:02:23]}  Ng4 {[%clk 0:01:57]} 24. Nc4 {[%clk 0:02:22]}  Qb8 {[%clk 0:01:55]} 25. f3 {[%clk 0:02:21]}  Nf6 {[%clk 0:01:51]} 26. Rb1 {[%clk 0:02:11]}  Nc6 {[%clk 0:01:49]} 27. b4 {[%clk 0:02:09]}  cxb4 {[%clk 0:01:48]} 28. axb4 {[%clk 0:02:09]}  Nd8 {[%clk 0:01:39]} 29. Qa4 {[%clk 0:02:05]}  Ne6 {[%clk 0:01:34]} 30. Bd2 {[%clk 0:02:05]}  Red8 {[%clk 0:01:28]} 31. Rfc1 {[%clk 0:02:05]}  Nd7 {[%clk 0:01:27]} 32. Bh3 {[%clk 0:01:50]}  Nb6 {[%clk 0:01:24]} 33. Nxb6 {[%clk 0:01:49]}  Qxb6 {[%clk 0:01:25]} 34. Ra1 {[%clk 0:01:38]}  Bf6 {[%clk 0:01:10]} 35. Kf1 {[%clk 0:01:24]}  Be7 {[%clk 0:00:46]} 36. Rxc8 {[%clk 0:01:21]}  Rxc8 {[%clk 0:00:46]} 37. Qxa7 {[%clk 0:01:20]}  Qb5 {[%clk 0:00:19]} 38. Qa6 {[%clk 0:01:18]}  Qd7 {[%clk 0:00:13]} 39. Ke1 {[%clk 0:01:01]}  Kh7 {[%clk 0:00:12]} 40. Qb6 {[%clk 0:00:54]}  Rc6 {[%clk 0:00:11]} 41. Qa7 {[%clk 0:00:46]}  Rc7 {[%clk 0:00:11]} 42. Qa4 {[%clk 0:00:46]}  Qc8 {[%clk 0:00:10]} 43. Qa8 {[%clk 0:00:41]}  Qd7 {[%clk 0:00:10]} 44. Qd5 {[%clk 0:00:38]}  Qc8 {[%clk 0:00:09]} 45. Qxe5 {[%clk 0:00:36]}  Rc2 {[%clk 0:00:08]} 46. Bxe6 {[%clk 0:00:28]}  fxe6 {[%clk 0:00:09]} 47. Qxd4 {[%clk 0:00:27]}  Qf8 {[%clk 0:00:08]} 48. f4 {[%clk 0:00:25]}  Qc8 {[%clk 0:00:01]} 49. Ra7 {[%clk 0:00:22]} 1-0


[Site "https://www.chess.com"]

[Event "Titled Tuesday Blitz April 11 Late 2023"]
[White "Belov, Alexei"]
[Black "Rose, Felix"]
[WhiteFideId "4128206"]
[BlackFideId "5105722"]
[WhiteElo "2421"]
[BlackElo "2039"]
[Result "1-0"]
[Round "03"]
[TimeControl "180+2"]
[Date "2023.04.11"]
[WhiteClock "0:01:19"]
[BlackClock "0:00:16"]

1. e4 {[%clk 0:02:58]}  c5 {[%clk 0:02:58]} 2. Nf3 {[%clk 0:02:58]}  e6 {[%clk 0:02:58]} 3. d4 {[%clk 0:02:58]}  cxd4 {[%clk 0:02:59]} 4. Nxd4 {[%clk 0:02:59]}  a6 {[%clk 0:03:00]} 5. Nc3 {[%clk 0:02:59]}  b5 {[%clk 0:03:00]} 6. Be2 {[%clk 0:02:58]}  Bb7 {[%clk 0:03:01]} 7. Bf3 {[%clk 0:02:58]}  Nc6 {[%clk 0:03:01]} 8. Nxc6 {[%clk 0:02:57]}  Bxc6 {[%clk 0:03:02]} 9. O-O {[%clk 0:02:56]}  Qb8 {[%clk 0:03:01]} 10. Re1 {[%clk 0:02:53]}  Bd6 {[%clk 0:03:01]} 11. h3 {[%clk 0:02:53]}  Ne7 {[%clk 0:03:00]} 12. Qe2 {[%clk 0:02:48]}  Ng6 {[%clk 0:03:00]} 13. a4 {[%clk 0:02:26]}  b4 {[%clk 0:02:58]} 14. Nb1 {[%clk 0:02:26]}  O-O {[%clk 0:02:51]} 15. Nd2 {[%clk 0:02:26]}  a5 {[%clk 0:02:36]} 16. Nc4 {[%clk 0:02:25]}  Bh2+ {[%clk 0:02:35]} 17. Kh1 {[%clk 0:02:25]}  Bf4 {[%clk 0:02:36]} 18. e5 {[%clk 0:02:22]}  Bxf3 {[%clk 0:02:27]} 19. Qxf3 {[%clk 0:02:22]}  Bxc1 {[%clk 0:02:10]} 20. Raxc1 {[%clk 0:02:21]}  Rc8 {[%clk 0:02:05]} 21. b3 {[%clk 0:02:18]}  Ra6 {[%clk 0:01:50]} 22. Rcd1 {[%clk 0:02:16]}  Qc7 {[%clk 0:01:30]} 23. Rd2 {[%clk 0:02:08]}  Rc6 {[%clk 0:01:22]} 24. Qe4 {[%clk 0:02:01]}  Rc5 {[%clk 0:01:18]} 25. f4 {[%clk 0:01:59]}  Ne7 {[%clk 0:01:05]} 26. Ne3 {[%clk 0:01:47]}  Rd8 {[%clk 0:00:45]} 27. Red1 {[%clk 0:01:46]}  Rc3 {[%clk 0:00:42]} 28. f5 {[%clk 0:01:34]}  Nxf5 {[%clk 0:00:30]} 29. Nxf5 {[%clk 0:01:33]}  exf5 {[%clk 0:00:31]} 30. Qxf5 {[%clk 0:01:34]}  g6 {[%clk 0:00:26]} 31. Qf6 {[%clk 0:01:22]}  Rf8 {[%clk 0:00:16]} 32. Rxd7 {[%clk 0:01:19]} 1-0


[Site "https://www.chess.com"]

[Event "Titled Tuesday Blitz April 11 Late 2023"]
[White "Kornyukov, Alexey"]
[Black "Kourkoulos-Arditis, Stamatis"]
[WhiteFideId "4150457"]
[BlackFideId "4221990"]
[WhiteElo "2352"]
[BlackElo "2400"]
[Result "1-0"]
[Round "03"]
[TimeControl "180+2"]
[Date "2023.04.11"]
[WhiteClock "0:00:33"]
[BlackClock "0:00:04"]

1. d4 {[%clk 0:03:00]}  Nf6 {[%clk 0:02:58]} 2. c4 {[%clk 0:03:00]}  c5 {[%clk 0:02:57]} 3. d5 {[%clk 0:02:59]}  e6 {[%clk 0:02:57]} 4. Nc3 {[%clk 0:02:59]}  exd5 {[%clk 0:02:57]} 5. cxd5 {[%clk 0:03:00]}  d6 {[%clk 0:02:58]} 6. e4 {[%clk 0:03:01]}  g6 {[%clk 0:02:58]} 7. f3 {[%clk 0:03:01]}  Bg7 {[%clk 0:02:58]} 8. Bg5 {[%clk 0:03:01]}  h6 {[%clk 0:02:56]} 9. Be3 {[%clk 0:03:00]}  O-O {[%clk 0:02:54]} 10. Qd2 {[%clk 0:03:01]}  a6 {[%clk 0:02:52]} 11. a4 {[%clk 0:03:01]}  Nbd7 {[%clk 0:02:51]} 12. Nh3 {[%clk 0:03:00]}  Ne5 {[%clk 0:02:40]} 13. Nf2 {[%clk 0:02:59]}  h5 {[%clk 0:02:36]} 14. Be2 {[%clk 0:02:59]}  Re8 {[%clk 0:02:30]} 15. h3 {[%clk 0:02:58]}  Nh7 {[%clk 0:02:14]} 16. O-O {[%clk 0:02:57]}  f5 {[%clk 0:02:14]} 17. f4 {[%clk 0:02:40]}  Nf7 {[%clk 0:02:13]} 18. e5 {[%clk 0:02:26]}  dxe5 {[%clk 0:02:09]} 19. Bxc5 {[%clk 0:02:27]}  e4 {[%clk 0:02:09]} 20. Nfd1 {[%clk 0:02:09]}  Bd7 {[%clk 0:01:44]} 21. Ne3 {[%clk 0:02:04]}  Rc8 {[%clk 0:01:45]} 22. b4 {[%clk 0:01:54]}  Bxc3 {[%clk 0:01:36]} 23. Qxc3 {[%clk 0:01:51]}  b6 {[%clk 0:01:36]} 24. Bxa6 {[%clk 0:01:49]}  bxc5 {[%clk 0:01:33]} 25. Bxc8 {[%clk 0:01:49]}  cxb4 {[%clk 0:01:32]} 26. Qxb4 {[%clk 0:01:38]}  Qxc8 {[%clk 0:01:28]} 27. Qb6 {[%clk 0:01:34]}  Qa8 {[%clk 0:00:51]} 28. Qxg6+ {[%clk 0:01:32]}  Kh8 {[%clk 0:00:47]} 29. Qxf7 {[%clk 0:01:30]}  Qa7 {[%clk 0:00:47]} 30. Rfe1 {[%clk 0:01:21]}  Rg8 {[%clk 0:00:46]} 31. Qxh5 {[%clk 0:01:10]}  Qd4 {[%clk 0:00:38]} 32. Kh1 {[%clk 0:00:45]}  Qb2 {[%clk 0:00:30]} 33. Qe2 {[%clk 0:00:42]}  Qb8 {[%clk 0:00:30]} 34. Qf2 {[%clk 0:00:36]}  Rg7 {[%clk 0:00:13]} 35. a5 {[%clk 0:00:35]}  Nf8 {[%clk 0:00:09]} 36. Reb1 {[%clk 0:00:34]}  Qd6 {[%clk 0:00:04]} 37. a6 {[%clk 0:00:33]} 1-0


[Site "https://www.chess.com"]

[Event "Titled Tuesday Blitz April 11 Late 2023"]
[White "Kostiukov, Alexandr"]
[Black "Francisco Guecamburu, Candela Be"]
[WhiteFideId "14108100"]
[BlackFideId "160911"]
[WhiteElo "2202"]
[BlackElo "2326"]
[Result "0-1"]
[Round "03"]
[TimeControl "180+2"]
[Date "2023.04.11"]
[WhiteClock "0:00:06"]
[BlackClock "0:00:05"]

1. g3 {[%clk 0:02:54]}  Nf6 {[%clk 0:03:00]} 2. Bg2 {[%clk 0:02:54]}  d5 {[%clk 0:03:00]} 3. d3 {[%clk 0:02:54]}  g6 {[%clk 0:03:00]} 4. e4 {[%clk 0:02:55]}  dxe4 {[%clk 0:03:00]} 5. dxe4 {[%clk 0:02:56]}  Qxd1+ {[%clk 0:03:00]} 6. Kxd1 {[%clk 0:02:57]}  Nc6 {[%clk 0:02:53]} 7. f3 {[%clk 0:02:57]}  Bg7 {[%clk 0:02:49]} 8. c3 {[%clk 0:02:57]}  O-O {[%clk 0:02:50]} 9. Nd2 {[%clk 0:02:53]}  Nh5 {[%clk 0:02:47]} 10. Kc2 {[%clk 0:02:43]}  f5 {[%clk 0:02:44]} 11. Nh3 {[%clk 0:01:29]}  fxe4 {[%clk 0:02:28]} 12. fxe4 {[%clk 0:01:24]}  Ne5 {[%clk 0:02:22]} 13. Rf1 {[%clk 0:01:14]}  Bg4 {[%clk 0:02:03]} 14. Nf4 {[%clk 0:01:05]}  c6 {[%clk 0:01:45]} 15. h3 {[%clk 0:00:57]}  Nxg3 {[%clk 0:01:40]} 16. hxg4 {[%clk 0:00:48]}  Nxf1 {[%clk 0:01:40]} 17. Nxf1 {[%clk 0:00:49]}  g5 {[%clk 0:01:29]} 18. Nh3 {[%clk 0:00:25]}  h6 {[%clk 0:00:46]} 19. Ne3 {[%clk 0:00:21]}  e6 {[%clk 0:00:44]} 20. Bd2 {[%clk 0:00:21]}  Nf3 {[%clk 0:00:40]} 21. Bxf3 {[%clk 0:00:15]}  Rxf3 {[%clk 0:00:41]} 22. Ng1 {[%clk 0:00:15]}  Rf2 {[%clk 0:00:38]} 23. Rf1 {[%clk 0:00:14]}  Raf8 {[%clk 0:00:33]} 24. Rxf2 {[%clk 0:00:12]}  Rxf2 {[%clk 0:00:34]} 25. Kd3 {[%clk 0:00:10]}  Be5 {[%clk 0:00:30]} 26. Ne2 {[%clk 0:00:10]}  b5 {[%clk 0:00:17]} 27. Be1 {[%clk 0:00:10]}  Rf8 {[%clk 0:00:14]} 28. Bg3 {[%clk 0:00:10]}  Bf4 {[%clk 0:00:13]} 29. Bf2 {[%clk 0:00:07]}  Rd8+ {[%clk 0:00:12]} 30. Kc2 {[%clk 0:00:07]}  Be5 {[%clk 0:00:12]} 31. Ng2 {[%clk 0:00:05]}  Rf8 {[%clk 0:00:11]} 32. Be3 {[%clk 0:00:06]}  Rf3 {[%clk 0:00:11]} 33. Kd2 {[%clk 0:00:06]}  a5 {[%clk 0:00:08]} 34. Ne1 {[%clk 0:00:06]}  Rf8 {[%clk 0:00:08]} 35. Nd3 {[%clk 0:00:07]}  Rd8 {[%clk 0:00:07]} 36. Kc2 {[%clk 0:00:07]}  Bg7 {[%clk 0:00:07]} 37. a4 {[%clk 0:00:07]}  bxa4 {[%clk 0:00:06]} 38. Bd4 {[%clk 0:00:08]}  a3 {[%clk 0:00:06]} 39. bxa3 {[%clk 0:00:08]}  Rf8 {[%clk 0:00:06]} 40. Bxg7 {[%clk 0:00:07]}  Kxg7 {[%clk 0:00:07]} 41. Nd4 {[%clk 0:00:08]}  Rf1 {[%clk 0:00:07]} 42. Nxe6+ {[%clk 0:00:08]}  Kf6 {[%clk 0:00:07]} 43. Nd4 {[%clk 0:00:09]}  Rg1 {[%clk 0:00:08]} 44. Nf5 {[%clk 0:00:06]}  Rxg4 {[%clk 0:00:07]} 45. Nxh6 {[%clk 0:00:06]}  Rxe4 {[%clk 0:00:07]} 46. Ng8+ {[%clk 0:00:05]}  Kg7 {[%clk 0:00:07]} 47. Nc5 {[%clk 0:00:05]}  Re5 {[%clk 0:00:06]} 48. Nd7 {[%clk 0:00:05]}  Re2+ {[%clk 0:00:05]} 49. Kd3 {[%clk 0:00:04]}  Ra2 {[%clk 0:00:06]} 50. Ngf6 {[%clk 0:00:03]}  Rxa3 {[%clk 0:00:06]} 51. Ne4 {[%clk 0:00:04]}  Ra1 {[%clk 0:00:06]} 52. Nxg5 {[%clk 0:00:04]}  Rd1+ {[%clk 0:00:06]} 53. Kc4 {[%clk 0:00:04]}  Rxd7 {[%clk 0:00:07]} 54. Ne6+ {[%clk 0:00:05]}  Kf6 {[%clk 0:00:06]} 55. Nd4 {[%clk 0:00:06]}  Rc7 {[%clk 0:00:04]} 56. Kc5 {[%clk 0:00:06]}  a4 {[%clk 0:00:04]} 57. Kb4 {[%clk 0:00:07]}  c5+ {[%clk 0:00:04]} 58. Kxa4 {[%clk 0:00:05]}  cxd4 {[%clk 0:00:05]} 59. cxd4 {[%clk 0:00:06]}  Ke6 {[%clk 0:00:05]} 0-1


[Site "https://www.chess.com"]

[Event "Titled Tuesday Blitz April 11 Late 2023"]
[White "Prieto Aranguren, Alain"]
[Black "Hajiyev, Kanan"]
[WhiteFideId "2268906"]
[BlackFideId "13404148"]
[WhiteElo "2209"]
[BlackElo "2103"]
[Result "0-1"]
[Round "03"]
[TimeControl "180+2"]
[Date "2023.04.11"]
[WhiteClock "0:00:01"]
[BlackClock "0:00:05"]

1. d4 {[%clk 0:03:00]}  Nf6 {[%clk 0:02:59]} 2. c4 {[%clk 0:03:00]}  e6 {[%clk 0:03:00]} 3. Nc3 {[%clk 0:02:59]}  Bb4 {[%clk 0:03:00]} 4. Bd2 {[%clk 0:02:57]}  c5 {[%clk 0:02:59]} 5. d5 {[%clk 0:02:54]}  exd5 {[%clk 0:02:55]} 6. cxd5 {[%clk 0:02:53]}  O-O {[%clk 0:02:54]} 7. a3 {[%clk 0:02:50]}  Ba5 {[%clk 0:02:51]} 8. g3 {[%clk 0:02:42]}  Re8 {[%clk 0:02:49]} 9. Bg2 {[%clk 0:02:42]}  d6 {[%clk 0:02:50]} 10. Qc2 {[%clk 0:02:38]}  Bg4 {[%clk 0:02:41]} 11. h3 {[%clk 0:02:23]}  Bh5 {[%clk 0:02:40]} 12. f4 {[%clk 0:02:08]}  h6 {[%clk 0:02:13]} 13. f5 {[%clk 0:02:03]}  Nbd7 {[%clk 0:01:38]} 14. g4 {[%clk 0:02:02]}  Nxg4 {[%clk 0:01:16]} 15. hxg4 {[%clk 0:02:02]}  Bxg4 {[%clk 0:01:16]} 16. O-O-O {[%clk 0:01:47]}  Qf6 {[%clk 0:01:13]} 17. Ne4 {[%clk 0:01:32]}  Bxd2+ {[%clk 0:01:12]} 18. Rxd2 {[%clk 0:01:20]}  Qe5 {[%clk 0:00:47]} 19. Qc3 {[%clk 0:00:52]}  Qf4 {[%clk 0:00:18]} 20. e3 {[%clk 0:00:36]}  Qe5 {[%clk 0:00:05]} 21. Qxe5 {[%clk 0:00:35]}  Rxe5 {[%clk 0:00:02]} 22. Nxd6 {[%clk 0:00:31]}  Rxe3 {[%clk 0:00:02]} 23. Nh3 {[%clk 0:00:20]}  Ne5 {[%clk 0:00:02]} 24. Nxb7 {[%clk 0:00:16]}  Rb8 {[%clk 0:00:02]} 25. Nxc5 {[%clk 0:00:15]}  Rd8 {[%clk 0:00:02]} 26. d6 {[%clk 0:00:12]}  Rc8 {[%clk 0:00:03]} 27. b4 {[%clk 0:00:11]}  a5 {[%clk 0:00:03]} 28. Kb2 {[%clk 0:00:10]}  Rd8 {[%clk 0:00:03]} 29. d7 {[%clk 0:00:09]}  Nc4+ {[%clk 0:00:04]} 30. Kc2 {[%clk 0:00:08]}  Nxd2 {[%clk 0:00:05]} 31. Kxd2 {[%clk 0:00:08]}  Rxa3 {[%clk 0:00:05]} 32. Bc6 {[%clk 0:00:05]}  Bxf5 {[%clk 0:00:05]} 33. Re1 {[%clk 0:00:01]}  Bxd7 {[%clk 0:00:05]} 0-1


[Site "https://www.chess.com"]

[Event "Titled Tuesday Blitz April 11 Late 2023"]
[White "Jimenez Almeida, Luis David"]
[Black "Grot, Blazej"]
[WhiteFideId "22242244"]
[BlackFideId "21835845"]
[WhiteElo "2245"]
[BlackElo "1823"]
[Result "1-0"]
[Round "03"]
[TimeControl "180+2"]
[Date "2023.04.11"]
[WhiteClock "0:00:07"]
[BlackClock "0:00:08"]

1. e4 {[%clk 0:03:00]}  d6 {[%clk 0:02:57]} 2. d4 {[%clk 0:02:53]}  Nf6 {[%clk 0:02:57]} 3. Nc3 {[%clk 0:02:48]}  c6 {[%clk 0:02:57]} 4. a4 {[%clk 0:02:48]}  a5 {[%clk 0:02:55]} 5. Nf3 {[%clk 0:02:47]}  Bg4 {[%clk 0:02:55]} 6. h3 {[%clk 0:02:47]}  Bh5 {[%clk 0:02:55]} 7. Be2 {[%clk 0:02:45]}  e6 {[%clk 0:02:54]} 8. Be3 {[%clk 0:02:45]}  Be7 {[%clk 0:02:53]} 9. Qd2 {[%clk 0:02:44]}  d5 {[%clk 0:02:53]} 10. e5 {[%clk 0:02:42]}  Nfd7 {[%clk 0:02:53]} 11. g4 {[%clk 0:02:42]}  Bg6 {[%clk 0:02:54]} 12. h4 {[%clk 0:02:42]}  h5 {[%clk 0:02:53]} 13. gxh5 {[%clk 0:02:21]}  Bxh5 {[%clk 0:02:54]} 14. Ng5 {[%clk 0:02:21]}  Bxe2 {[%clk 0:02:44]} 15. Nxe2 {[%clk 0:02:22]}  c5 {[%clk 0:02:21]} 16. f4 {[%clk 0:02:16]}  Nc6 {[%clk 0:02:19]} 17. c3 {[%clk 0:02:15]}  cxd4 {[%clk 0:02:15]} 18. Nxd4 {[%clk 0:02:14]}  Nxd4 {[%clk 0:02:14]} 19. Bxd4 {[%clk 0:02:13]}  Qc7 {[%clk 0:02:08]} 20. O-O-O {[%clk 0:02:10]}  Qc4 {[%clk 0:01:50]} 21. Qc2 {[%clk 0:01:51]}  b5 {[%clk 0:01:11]} 22. axb5 {[%clk 0:01:36]}  a4 {[%clk 0:01:08]} 23. Kb1 {[%clk 0:01:29]}  a3 {[%clk 0:01:02]} 24. b3 {[%clk 0:01:29]}  Qxb5 {[%clk 0:01:01]} 25. Ka2 {[%clk 0:01:27]}  Rb8 {[%clk 0:00:46]} 26. f5 {[%clk 0:01:23]}  exf5 {[%clk 0:00:43]} 27. e6 {[%clk 0:01:23]}  Nf6 {[%clk 0:00:17]} 28. Bxf6 {[%clk 0:01:01]}  Bxf6 {[%clk 0:00:10]} 29. Nxf7 {[%clk 0:01:01]}  O-O {[%clk 0:00:04]} 30. h5 {[%clk 0:00:45]}  Qb6 {[%clk 0:00:05]} 31. Rhe1 {[%clk 0:00:35]}  Rfe8 {[%clk 0:00:04]} 32. Ne5 {[%clk 0:00:17]}  Rxe6 {[%clk 0:00:04]} 33. Nd7 {[%clk 0:00:16]}  Qd6 {[%clk 0:00:02]} 34. Rxe6 {[%clk 0:00:13]}  Qxd7 {[%clk 0:00:01]} 35. Qxf5 {[%clk 0:00:10]}  Qb7 {[%clk 0:00:01]} 36. Qxd5 {[%clk 0:00:10]}  Qxd5 {[%clk 0:00:01]} 37. Rxd5 {[%clk 0:00:08]}  Kf7 {[%clk 0:00:02]} 38. Re2 {[%clk 0:00:08]}  Rh8 {[%clk 0:00:03]} 39. Kxa3 {[%clk 0:00:08]}  Bxc3 {[%clk 0:00:03]} 40. b4 {[%clk 0:00:08]}  Ra8+ {[%clk 0:00:03]} 41. Kb3 {[%clk 0:00:08]}  Bf6 {[%clk 0:00:03]} 42. b5 {[%clk 0:00:08]}  Rh8 {[%clk 0:00:04]} 43. Kc4 {[%clk 0:00:08]}  Rc8+ {[%clk 0:00:05]} 44. Rc5 {[%clk 0:00:08]}  Ra8 {[%clk 0:00:03]} 45. b6 {[%clk 0:00:08]}  Rb8 {[%clk 0:00:04]} 46. Kb5 {[%clk 0:00:09]}  Bd4 {[%clk 0:00:04]} 47. Rc7+ {[%clk 0:00:09]}  Kf6 {[%clk 0:00:04]} 48. b7 {[%clk 0:00:09]}  Be5 {[%clk 0:00:04]} 49. Rc6+ {[%clk 0:00:08]}  Kf5 {[%clk 0:00:04]} 50. Kb6 {[%clk 0:00:08]}  Kf4 {[%clk 0:00:05]} 51. Rc4+ {[%clk 0:00:07]}  Kf3 {[%clk 0:00:04]} 52. Rxe5 {[%clk 0:00:06]}  Rf8 {[%clk 0:00:04]} 53. Re6 {[%clk 0:00:06]}  g5 {[%clk 0:00:02]} 54. hxg6 {[%clk 0:00:06]}  Rg8 {[%clk 0:00:02]} 55. g7 {[%clk 0:00:06]}  Kg3 {[%clk 0:00:02]} 56. Kc7 {[%clk 0:00:06]}  Rxg7+ {[%clk 0:00:03]} 57. Kb6 {[%clk 0:00:05]}  Rg8 {[%clk 0:00:03]} 58. Rec6 {[%clk 0:00:05]}  Kg2 {[%clk 0:00:02]} 59. Rc8 {[%clk 0:00:06]}  Rg6+ {[%clk 0:00:03]} 60. R4c6 {[%clk 0:00:07]}  Rg3 {[%clk 0:00:03]} 61. b8=Q {[%clk 0:00:07]}  Rb3+ {[%clk 0:00:04]} 62. Kc7 {[%clk 0:00:07]}  Rg3 {[%clk 0:00:04]} 63. Rd8 {[%clk 0:00:07]}  Kh1 {[%clk 0:00:05]} 64. Rh8+ {[%clk 0:00:07]}  Kg1 {[%clk 0:00:05]} 65. Rg8 {[%clk 0:00:08]}  Kh1 {[%clk 0:00:03]} 66. Rxg3 {[%clk 0:00:07]}  Kh2 {[%clk 0:00:04]} 67. Rh3+ {[%clk 0:00:06]}  Kxh3 {[%clk 0:00:05]} 68. Rh6+ {[%clk 0:00:06]}  Kg4 {[%clk 0:00:06]} 69. Rh4+ {[%clk 0:00:06]}  Kf5 {[%clk 0:00:07]} 70. Qb5+ {[%clk 0:00:06]}  Kg6 {[%clk 0:00:07]} 71. Rh6+ {[%clk 0:00:06]}  Kf7 {[%clk 0:00:08]} 72. Qf5+ {[%clk 0:00:06]}  Kg8 {[%clk 0:00:09]} 73. Qg6+ {[%clk 0:00:06]}  Kf8 {[%clk 0:00:09]} 74. Qf6+ {[%clk 0:00:06]}  Kg8 {[%clk 0:00:08]} 75. Rh8# {[%clk 0:00:07]} 1-0


[Site "https://www.chess.com"]